bitfinex-derivatives/quotes_BTCF0:USTF0_20250121
["timestamp","ask_amount","ask_price","bid_price","bid_amount"]
[1737462135845,0.40895942,104390.0,104380.0,0.33938638]
[1737462136638,0.04815942,104390.0,104380.0,0.33938638]
[1737462137144,0.40895942,104390.0,104380.0,0.33938638]
[1737462138043,0.36101742,104390.0,104380.0,0.38733338]
[1737462138237,0.36101742,104390.0,104380.0,0.408747]
[1737462138238,0.00021742,104390.0,104380.0,0.408747]
[1737462138739,0.00021742,104390.0,104380.0,0.047947]
[1737462138953,0.40895942,104390.0,104380.0,0.047947]
[1737462139350,0.047947,104380.0,104370.0,0.04809338]
[1737462139548,0.408747,104380.0,104370.0,0.04809338]
[1737462139842,0.40882503,104380.0,104370.0,0.00014338]
[1737462141045,0.40882503,104380.0,104370.0,0.04809438]
[1737462141939,7.803e-05,104380.0,104370.0,0.04809438]
[1737462142347,7.803e-05,104380.0,104370.0,0.40889438]
[1737462142749,7.803e-05,104380.0,104370.0,0.50470276]
[1737462143048,1e-08,104380.0,104370.0,0.50470276]
[1737462144741,1e-08,104380.0,104370.0,0.80470276]
[1737462144946,0.41016678,104420.0,104410.0,0.047933]
[1737462145845,0.4102178,104420.0,104410.0,0.047933]
[1737462147649,0.36085102,104420.0,104410.0,0.047933]
[1737462147951,5.102e-05,104420.0,104410.0,0.408733]
[1737462148144,0.00014338,104430.0,104420.0,0.047928]
[1737462148451,0.55018473,104450.0,104440.0,0.047919]
[1737462148452,0.14146973,104450.0,104440.0,0.047919]
[1737462148648,0.14146973,104450.0,104440.0,0.408719]
[1737462148852,0.14146973,104450.0,104440.0,0.047919]
[1737462149057,0.14146973,104450.0,104440.0,0.408719]
[1737462149950,0.14146973,104450.0,104440.0,0.047919]
[1737462150355,0.18938473,104450.0,104440.0,0.047919]
[1737462150753,0.14146973,104450.0,104440.0,0.047919]
[1737462150942,0.40885438,104460.0,104450.0,0.047915]
[1737462158054,0.40885438,104460.0,104440.0,0.047918]
[1737462158055,0.047917,104450.0,104440.0,0.047918]
[1737462158262,0.408717,104450.0,104440.0,0.047918]
[1737462158765,0.047919,104440.0,104430.0,0.04806538]
[1737462158950,0.408719,104440.0,104430.0,0.04806538]
[1737462161055,0.408719,104440.0,104430.0,0.00014338]
[1737462161757,0.408719,104440.0,104430.0,0.04806738]
[1737462162163,0.3608,104440.0,104430.0,0.04806738]
[1737462162555,0.408719,104440.0,104430.0,0.04806738]
[1737462164561,0.3608,104440.0,104430.0,0.04806738]
[1737462164861,0.47385638,104460.0,104450.0,0.047915]
[1737462167667,0.47385638,104460.0,104450.0,0.04846527]
[1737462168658,0.11305638,104460.0,104450.0,0.04846527]
[1737462168860,0.47385638,104460.0,104450.0,0.04846527]
[1737462169064,0.47385638,104460.0,104450.0,0.00055027]
[1737462169265,0.47385638,104460.0,104450.0,0.04846527]
[1737462171466,3.8e-07,104460.0,104450.0,0.40926527]
[1737462171666,3.8e-07,104460.0,104450.0,0.87780027]
[1737462171876,0.14146973,104480.0,104470.0,0.047905]
[1737462172072,0.17006011,104490.0,104480.0,0.047901]
[1737462172275,1.1e-07,104490.0,104480.0,0.408701]
[1737462172476,0.52537045,104500.0,104490.0,0.047896]
[1737462172678,0.52537045,104500.0,104490.0,0.408696]
[1737462172872,0.52537045,104500.0,104490.0,0.484096]
[1737462173072,0.52537045,104500.0,104490.0,0.559496]
[1737462173375,0.57326245,104500.0,104490.0,0.047896]
[1737462173570,0.52537045,104500.0,104490.0,0.047896]
[1737462173879,0.57326245,104500.0,104490.0,0.047896]
[1737462175880,0.147892,104500.0,104490.0,0.047896]
[1737462180992,0.508692,104500.0,104490.0,0.047896]
[1737462181295,0.583892,104500.0,104490.0,0.047896]
[1737462181484,0.147892,104500.0,104490.0,0.047896]
[1737462182693,0.147892,104500.0,104480.0,0.00014338]
[1737462182694,0.508692,104500.0,104480.0,0.00014338]
[1737462182880,0.408696,104490.0,104480.0,0.00014338]
[1737462183084,0.483396,104490.0,104480.0,0.00014338]
[1737462184892,0.047905,104470.0,104460.0,0.04934355]
[1737462185093,0.408705,104470.0,104460.0,0.04934355]
[1737462185487,0.4355,104490.0,104470.0,0.047905]
[1737462185688,0.4355,104490.0,104480.0,0.047901]
[1737462185689,0.3608,104490.0,104480.0,0.047901]
[1737462185991,0.40883938,104490.0,104480.0,0.047901]
[1737462186780,0.36094338,104490.0,104480.0,0.047901]
[1737462187789,0.00014338,104490.0,104480.0,0.047901]
[1737462187988,0.36094338,104490.0,104480.0,0.047901]
[1737462188279,0.00014338,104490.0,104480.0,0.408701]
[1737462191693,0.00014338,104490.0,104480.0,0.41469699]
[1737462194397,3.8e-07,104490.0,104480.0,0.8104045]
[1737462194903,3.8e-07,104490.0,104480.0,0.85849718]
[1737462195704,3.8e-07,104490.0,104480.0,0.55849718]
[1737462195894,3.8e-07,104490.0,104480.0,0.85849718]
[1737462196592,3.8e-07,104490.0,104480.0,0.55849718]
[1737462198307,0.11416856,104520.0,104490.0,0.047896]
[1737462198602,0.67154656,104530.0,104520.0,0.047883]
[1737462200007,0.047883,104520.0,104510.0,0.04802838]
[1737462200900,0.67154856,104530.0,104520.0,0.047883]
[1737462201093,0.47496856,104530.0,104520.0,0.047883]
[1737462201599,0.11416856,104530.0,104520.0,0.047883]
[1737462202197,0.11416856,104530.0,104520.0,0.408683]
[1737462203609,5.6e-07,104530.0,104520.0,0.50435389]
[1737462203800,5.6e-07,104530.0,104520.0,0.87685389]
[1737462204109,0.17153564,104540.0,104530.0,0.047878]
[1737462204404,0.17153564,104540.0,104530.0,0.408678]
[1737462205310,0.00014338,104540.0,104530.0,0.408678]
[1737462205909,3.8e-07,104540.0,104530.0,0.408678]
[1737462206111,2.6e-07,104560.0,104550.0,0.047869]
[1737462206411,0.1984626,104580.0,104560.0,0.047864]
[1737462206709,0.1984626,104580.0,104570.0,0.40866]
[1737462206909,0.2463176,104580.0,104570.0,0.40866]
[1737462207101,0.6071176,104580.0,104570.0,0.04786]
[1737462208203,0.6071176,104580.0,104560.0,0.00014338]
[1737462208405,0.04786,104570.0,104560.0,0.04800538]
[1737462208813,0.12706,104570.0,104560.0,0.04800538]
[1737462209109,0.48786,104570.0,104560.0,0.04800538]
[1737462210115,0.48786,104570.0,104560.0,0.00014338]
[1737462210817,0.48786,104570.0,104560.0,0.04800738]
[1737462211612,0.44,104570.0,104560.0,0.04800738]
[1737462212309,0.0792,104570.0,104560.0,0.04800738]
[1737462212513,0.408658,104580.0,104560.0,0.40880738]
[1737462212715,0.408658,104580.0,104570.0,0.04786]
[1737462214109,0.58863075,104590.0,104570.0,0.04786]
[1737462214110,0.27568275,104590.0,104570.0,0.04786]
[1737462214311,0.27568275,104590.0,104580.0,0.047855]
[1737462214802,0.22639556,104590.0,104580.0,0.047855]
[1737462215003,9.556e-05,104590.0,104580.0,0.408655]
[1737462216018,9.556e-05,104590.0,104580.0,0.047855]
[1737462217720,0.04794556,104590.0,104580.0,0.047855]
[1737462218319,9.556e-05,104590.0,104580.0,0.047855]
[1737462218915,9.556e-05,104590.0,104580.0,0.408655]
[1737462223121,9.556e-05,104590.0,104580.0,0.41545456]
[1737462224113,0.04794556,104590.0,104580.0,0.047855]
[1737462224416,0.047859,104580.0,104570.0,0.047857]
[1737462224608,0.643359,104580.0,104570.0,0.047857]
[1737462225520,0.04786,104570.0,104560.0,0.04800338]
[1737462226019,0.40866,104570.0,104560.0,0.04800338]
[1737462227220,0.40866,104570.0,104560.0,0.00014338]
[1737462227520,0.04786,104570.0,104560.0,0.04800738]
[1737462229018,0.643356,104580.0,104570.0,0.04786]
[1737462231114,0.5955,104580.0,104570.0,0.04786]
[1737462233522,0.2347,104580.0,104570.0,0.04786]
[1737462234026,0.36741996,104590.0,104580.0,0.047855]
[1737462234721,0.00661996,104590.0,104580.0,0.047855]
[1737462235019,9.556e-05,104590.0,104580.0,0.047855]
[1737462235212,9.556e-05,104590.0,104580.0,0.408655]
[1737462235416,0.00209556,104590.0,104580.0,0.408655]
[1737462237012,0.00109556,104590.0,104580.0,0.417655]
[1737462237520,0.00209556,104590.0,104580.0,0.426655]
[1737462237717,0.00209556,104590.0,104580.0,0.065855]
[1737462237913,0.04994556,104590.0,104580.0,0.018]
[1737462238113,0.12494556,104590.0,104580.0,0.018]
[1737462238619,0.48574556,104590.0,104580.0,0.018]
[1737462240513,0.04786,104570.0,104560.0,0.17153564]
[1737462240722,0.04786,104570.0,104560.0,0.21939964]
[1737462241024,0.40866,104570.0,104560.0,0.17153564]
[1737462241722,0.56116,104570.0,104560.0,0.18953564]
[1737462243220,0.56016,104570.0,104560.0,0.18053564]
[1737462243420,0.56016,104570.0,104560.0,0.18253564]
[1737462243621,0.70223272,104570.0,104560.0,0.00214338]
[1737462243829,0.70323272,104570.0,104560.0,0.00614338]
[1737462244329,0.70223272,104570.0,104560.0,0.00514338]
[1737462245128,0.70223272,104570.0,104560.0,3.8e-07]
[1737462245426,0.70223272,104570.0,104560.0,0.00028717]
[1737462246330,0.70223272,104570.0,104560.0,1.7e-07]
[1737462248135,0.7087388,104570.0,104560.0,1.7e-07]
[1737462248331,0.73679995,104570.0,104560.0,1.7e-07]
[1737462251219,0.047864,104560.0,104550.0,0.00010355]
[1737462251531,0.485164,104560.0,104550.0,0.00010355]
[1737462252634,0.047878,104530.0,104520.0,0.047882]
[1737462252823,0.047883,104520.0,104510.0,0.39696876]
[1737462253733,0.408683,104520.0,104510.0,0.32129226]
[1737462254140,0.408683,104520.0,104510.0,0.24629226]
[1737462254624,0.409683,104520.0,104510.0,0.17339226]
[1737462254824,0.048883,104520.0,104510.0,0.002]
[1737462255034,0.770483,104520.0,104510.0,0.002]
[1737462255737,0.047887,104510.0,104500.0,0.17153564]
[1737462255929,0.408687,104510.0,104500.0,0.17153564]
[1737462258037,0.047887,104510.0,104500.0,0.21942764]
[1737462258240,0.047887,104510.0,104500.0,0.22142764]
[1737462258241,0.408687,104510.0,104500.0,0.22142764]
[1737462258927,0.408687,104510.0,104500.0,0.17353564]
[1737462259835,0.408687,104510.0,104500.0,0.00214338]
[1737462260329,0.408687,104510.0,104500.0,0.05003538]
[1737462260532,0.408687,104510.0,104500.0,0.12873538]
[1737462261433,0.3608,104510.0,104500.0,0.00214338]
[1737462261641,0.408687,104510.0,104500.0,0.00214338]
[1737462277231,0.49425451,104510.0,104500.0,0.00214338]
[1737462278738,0.047901,104480.0,104470.0,0.37079626]
[1737462280043,0.410701,104480.0,104470.0,0.37379626]
[1737462280648,0.410701,104480.0,104470.0,0.60128273]
[1737462281044,0.410701,104480.0,104470.0,0.52368273]
[1737462283145,0.410701,104480.0,104470.0,0.47577873]
[1737462283353,0.410701,104480.0,104470.0,0.52368373]
[1737462284445,0.410701,104480.0,104470.0,0.29619726]
[1737462285453,0.41845261,104480.0,104470.0,0.29619726]
[1737462285852,0.41845261,104480.0,104470.0,0.17439226]
[1737462286157,0.57495261,104480.0,104470.0,0.17439226]
[1737462287851,2.07495261,104480.0,104470.0,0.17439226]
[1737462289153,2.07495261,104480.0,104470.0,0.17239226]
[1737462289154,2.07395261,104480.0,104470.0,0.17239226]
[1737462289355,2.27482202,104480.0,104470.0,0.17239226]
[1737462289547,0.77382202,104480.0,104470.0,0.17139226]
[1737462289749,0.77582202,104480.0,104470.0,0.17139226]
[1737462290050,0.77782202,104480.0,104470.0,0.17139226]
[1737462290555,0.77482202,104480.0,104470.0,0.17139226]
[1737462291356,0.047905,104470.0,104460.0,0.22771348]
[1737462291651,0.484105,104470.0,104460.0,0.22771348]
[1737462293346,0.484105,104470.0,104460.0,0.00781451]
[1737462293959,0.484105,104470.0,104450.0,0.62374446]
[1737462293960,0.484105,104470.0,104440.0,0.00925041]
[1737462294148,0.408715,104450.0,104440.0,0.00925041]
[1737462294347,0.408715,104450.0,104440.0,0.00781451]
[1737462294550,0.563415,104450.0,104440.0,0.00781451]
[1737462295157,0.563415,104450.0,104440.0,0.00881451]
[1737462295564,0.564415,104450.0,104440.0,0.00881451]
[1737462295748,0.564415,104450.0,104440.0,0.00781451]
[1737462295950,0.565415,104450.0,104440.0,0.00881451]
[1737462296957,0.57300654,104450.0,104440.0,0.00881451]
[1737462298561,0.65884136,104450.0,104440.0,0.001]
[1737462300358,1.01964136,104450.0,104430.0,0.00014338]
[1737462300668,0.485619,104440.0,104430.0,0.00014338]
[1737462301258,0.485619,104440.0,104430.0,0.01512409]
[1737462301762,0.485619,104440.0,104430.0,0.01612409]
[1737462302161,0.047933,104410.0,104400.0,0.38435808]
[1737462302471,0.408733,104410.0,104400.0,0.38435808]
[1737462302855,0.408733,104410.0,104380.0,0.44302221]
[1737462302856,0.408733,104410.0,104380.0,0.33938638]
[1737462303066,0.408742,104390.0,104380.0,0.33938638]
[1737462303462,0.408742,104390.0,104380.0,0.44156413]
[1737462304565,0.408742,104390.0,104380.0,0.48951113]
[1737462304862,0.408742,104390.0,104380.0,0.56971113]
[1737462305061,0.047942,104390.0,104380.0,0.56971113]
[1737462305259,0.048942,104390.0,104380.0,0.56971113]
[1737462305452,0.049942,104390.0,104380.0,0.54573338]
[1737462306459,0.002,104390.0,104380.0,0.90653338]
[1737462306766,0.04808338,104400.0,104390.0,0.047942]
[1737462308063,0.04908338,104400.0,104390.0,0.047942]
[1737462308263,0.04908338,104400.0,104390.0,0.048942]
[1737462308264,0.05008338,104400.0,104390.0,0.048942]
[1737462308457,0.05008338,104400.0,104390.0,0.409742]
[1737462308664,0.41633658,104410.0,104400.0,0.047938]
[1737462309369,0.047926,104430.0,104420.0,0.047925]
[1737462309370,0.047925,104430.0,104420.0,0.047925]
[1737462309665,0.05553938,104440.0,104430.0,0.047921]
[1737462309863,0.05568276,104440.0,104430.0,0.047921]
[1737462310170,0.41648276,104440.0,104430.0,0.047921]
[1737462310360,0.36094338,104440.0,104430.0,0.047921]
[1737462310559,0.3622366,104470.0,104440.0,0.047919]
[1737462310768,0.3622366,104470.0,104460.0,0.04791]
[1737462310769,0.4101456,104470.0,104460.0,0.04791]
[1737462310962,0.4179027,104470.0,104460.0,0.04791]
[1737462311167,0.3608,104470.0,104460.0,0.04791]
[1737462311671,0.408705,104470.0,104460.0,0.04791]
[1737462312055,0.408705,104470.0,104460.0,0.04891]
[1737462312460,0.409705,104470.0,104460.0,0.04991]
[1737462312755,0.410705,104470.0,104460.0,0.05091]
[1737462313665,0.410705,104470.0,104460.0,0.12871]
[1737462314266,0.002,104470.0,104460.0,0.12871]
[1737462315069,0.00014338,104480.0,104470.0,0.047905]
[1737462315376,0.36094338,104480.0,104470.0,0.047905]
[1737462315679,0.22810731,104480.0,104470.0,0.408705]
[1737462316260,0.22810731,104480.0,104470.0,0.410705]
[1737462316670,0.22810731,104480.0,104470.0,0.049905]
[1737462316867,0.63680831,104480.0,104470.0,0.049905]
[1737462317573,2.13680831,104480.0,104470.0,0.049905]
[1737462318061,0.63680831,104480.0,104470.0,0.049905]
[1737462318458,0.63680831,104480.0,104470.0,0.002]
[1737462318459,2.13680831,104480.0,104470.0,0.002]
[1737462319067,2.13680831,104480.0,104470.0,0.049905]
[1737462319372,0.63680831,104480.0,104470.0,0.049905]
[1737462319971,0.00014338,104480.0,104470.0,0.049905]
[1737462320362,0.00014338,104480.0,104470.0,0.048905]
[1737462320763,0.36094338,104480.0,104470.0,0.048905]
[1737462321575,0.36094338,104480.0,104470.0,0.049905]
[1737462321769,0.36094338,104480.0,104470.0,0.048905]
[1737462321976,0.40884438,104480.0,104470.0,0.051905]
[1737462322272,0.36094338,104480.0,104470.0,0.051905]
[1737462323463,0.00014338,104480.0,104470.0,0.412705]
[1737462329772,0.00014338,104480.0,104470.0,0.42087721]
[1737462332773,0.00014338,104480.0,104470.0,0.06007721]
[1737462332972,0.36094338,104480.0,104470.0,0.06007721]
[1737462334474,0.00014338,104480.0,104470.0,0.42087721]
[1737462341681,0.08563351,104480.0,104470.0,0.42087721]
[1737462342480,0.08563351,104480.0,104470.0,0.06007721]
[1737462343582,0.08563351,104480.0,104470.0,0.42087721]
[1737462343883,0.08563351,104480.0,104470.0,0.06007721]
[1737462344573,0.13353451,104480.0,104470.0,0.06007721]
[1737462344773,0.57333451,104480.0,104470.0,0.06007721]
[1737462345080,0.65253451,104480.0,104470.0,0.06007721]
[1737462345380,0.04791,104470.0,104450.0,0.33223622]
[1737462345581,0.40871,104460.0,104450.0,0.38058093]
[1737462345777,0.40871,104460.0,104450.0,0.33223622]
[1737462347681,0.40871,104460.0,104450.0,0.33323622]
[1737462347979,0.04791,104460.0,104450.0,0.33323622]
[1737462348178,0.40871,104460.0,104450.0,0.33323622]
[1737462348483,0.41071,104460.0,104450.0,0.33323622]
[1737462349871,0.61018697,104460.0,104450.0,0.04905438]
[1737462350071,0.67425291,104460.0,104450.0,0.00114338]
[1737462350276,0.81941885,104460.0,104430.0,0.33354032]
[1737462350480,0.83358494,104440.0,104430.0,0.28561832]
[1737462350875,0.83358494,104440.0,104420.0,0.3419459]
[1737462350876,0.047924,104430.0,104420.0,0.3419459]
[1737462351076,0.55388994,104430.0,104420.0,0.3419459]
[1737462351979,0.55488994,104430.0,104420.0,0.3419459]
[1737462352184,0.490824,104430.0,104420.0,0.3898739]
[1737462353188,0.409724,104430.0,104420.0,0.3898739]
[1737462353375,0.002,104430.0,104420.0,0.81473984]
[1737462353687,0.002,104430.0,104420.0,0.89383984]
[1737462354188,0.002,104430.0,104420.0,0.55189394]
[1737462354189,0.20147697,104430.0,104420.0,0.55189394]
[1737462356290,0.002,104430.0,104420.0,0.55189394]
[1737462356680,0.002,104430.0,104420.0,0.487828]
[1737462357081,0.002,104430.0,104420.0,0.127028]
[1737462358388,0.002,104430.0,104420.0,0.19109394]
[1737462358988,0.002,104430.0,104420.0,0.127028]
[1737462359188,0.410724,104430.0,104420.0,0.127028]
[1737462359785,0.47478994,104430.0,104420.0,0.047928]
[1737462363488,0.047928,104420.0,104410.0,0.00014338]
[1737462363795,0.55369394,104420.0,104410.0,0.00014338]
[1737462364793,0.55369394,104420.0,104410.0,0.01812664]
[1737462366194,0.55369394,104420.0,104410.0,0.01498326]
[1737462366385,0.047938,104400.0,104390.0,0.04937764]
[1737462366588,0.408738,104400.0,104390.0,0.04937764]
[1737462367683,0.410738,104400.0,104390.0,0.05337764]
[1737462367889,0.47480394,104400.0,104390.0,0.05337764]
[1737462368297,0.89966988,104400.0,104390.0,0.00543664]
[1737462368497,0.83560394,104400.0,104390.0,0.00543664]
[1737462368795,0.84208918,104400.0,104390.0,0.00543664]
[1737462370092,0.84208918,104400.0,104390.0,0.05337864]
[1737462370697,0.84208918,104400.0,104390.0,0.00543664]
[1737462371686,0.84208918,104400.0,104390.0,0.05337864]
[1737462374201,0.84208918,104400.0,104390.0,0.00543664]
[1737462376803,0.047942,104390.0,104380.0,0.0481567]
[1737462377101,0.47280794,104390.0,104380.0,0.0002137]
[1737462377402,0.54660794,104390.0,104380.0,0.0002137]
[1737462378098,0.54760794,104390.0,104380.0,0.0092137]
[1737462378401,0.54860794,104390.0,104380.0,0.0182137]
[1737462378605,0.54860794,104390.0,104380.0,0.03320099]
[1737462379302,0.54860794,104390.0,104380.0,0.0182137]
[1737462382804,0.047947,104380.0,104370.0,0.0752]
[1737462383102,0.47281294,104380.0,104370.0,0.0752]
[1737462383897,0.52175994,104380.0,104370.0,0.008]
[1737462385103,0.52275994,104380.0,104370.0,0.014]
[1737462385702,0.59635994,104380.0,104370.0,0.014]
[1737462385891,0.66042588,104380.0,104370.0,0.014]
[1737462386097,0.047956,104360.0,104350.0,0.1595]
[1737462386299,0.47282194,104360.0,104350.0,0.2332]
[1737462386602,0.47282194,104360.0,104340.0,0.27839637]
[1737462386603,0.04796,104350.0,104340.0,0.228997]
[1737462386807,0.68439188,104350.0,104340.0,0.228997]
[1737462386996,0.62032594,104350.0,104340.0,0.228997]
[1737462387198,0.62032594,104350.0,104330.0,0.228997]
[1737462387199,1.547965,104340.0,104330.0,0.228997]
[1737462387398,1.97283094,104340.0,104330.0,0.228997]
[1737462387697,0.47283094,104340.0,104330.0,0.228997]
[1737462388205,0.53689688,104340.0,104330.0,0.24399096]
[1737462388402,0.409765,104340.0,104330.0,0.24399096]
[1737462388604,0.47383094,104340.0,104330.0,0.24399096]
[1737462388903,0.47383094,104340.0,104330.0,0.31859096]
[1737462389805,0.47483094,104340.0,104330.0,0.31859096]
[1737462390191,0.48008384,104340.0,104330.0,0.31859096]
[1737462391005,0.54414978,104340.0,104330.0,0.31859096]
[1737462391305,0.48008384,104340.0,104330.0,0.31859096]
[1737462391506,0.48008384,104340.0,104330.0,0.08959396]
[1737462391507,0.56557397,104340.0,104330.0,0.08959396]
[1737462392502,0.50150803,104340.0,104330.0,0.08959396]
[1737462392701,0.56557397,104340.0,104330.0,0.08959396]
[1737462393406,0.62963991,104340.0,104310.0,0.128375]
[1737462393706,0.47283994,104330.0,104320.0,0.0751]
[1737462394500,0.47283994,104330.0,104320.0,0.09009465]
[1737462394899,0.47383994,104330.0,104320.0,0.09009465]
[1737462395611,1.97383994,104330.0,104320.0,0.09009465]
[1737462396402,0.47283994,104330.0,104320.0,0.09009465]
[1737462396601,0.410774,104330.0,104320.0,0.13806865]
[1737462397507,0.47483994,104330.0,104320.0,0.13806865]
[1737462399008,0.47483994,104330.0,104320.0,0.09009465]
[1737462399512,0.47483994,104330.0,104320.0,0.0751]
[1737462399714,0.47483994,104330.0,104320.0,0.123074]
[1737462400014,0.47483994,104330.0,104320.0,0.12365188]
[1737462401413,0.410774,104330.0,104320.0,0.12365188]
[1737462401606,0.002,104330.0,104320.0,0.18771782]
[1737462401807,0.047967,104340.0,104330.0,0.04797]
[1737462402009,0.44643351,104350.0,104330.0,0.12127]
[1737462402216,0.44643351,104350.0,104330.0,0.54613094]
[1737462402405,0.49439551,104350.0,104340.0,0.047965]
[1737462402803,0.13359551,104350.0,104340.0,0.047965]
[1737462404017,0.047965,104340.0,104330.0,0.121266]
[1737462404214,0.11203094,104340.0,104330.0,0.121266]
[1737462404520,0.47283094,104340.0,104330.0,0.121266]
[1737462404711,0.47283094,104340.0,104330.0,0.0733]
[1737462405112,0.47283094,104340.0,104330.0,0.1529]
[1737462405512,0.47483094,104340.0,104330.0,0.1529]
[1737462405705,0.049965,104340.0,104330.0,0.20087]
[1737462408512,0.002,104340.0,104330.0,0.20087]
[1737462409014,0.002,104340.0,104330.0,0.20494943]
[1737462409207,0.00014338,104350.0,104330.0,0.62981537]
[1737462409412,0.00014338,104350.0,104340.0,0.047965]
[1737462410113,0.08563351,104350.0,104340.0,0.047965]
[1737462410314,0.13359351,104350.0,104340.0,0.047965]
[1737462411122,0.13459351,104350.0,104340.0,0.047965]
[1737462411818,0.13359351,104350.0,104340.0,0.047965]
[1737462412113,0.13459351,104350.0,104340.0,0.047965]
[1737462412317,0.13559351,104350.0,104340.0,0.047965]
[1737462413612,0.05010338,104350.0,104340.0,0.047965]
[1737462413822,0.11416932,104350.0,104340.0,0.047965]
[1737462414817,0.11316932,104350.0,104340.0,0.047965]
[1737462415019,0.11416932,104350.0,104340.0,0.047965]
[1737462415424,0.47496932,104350.0,104340.0,0.047965]
[1737462415725,0.41090338,104350.0,104340.0,0.047965]
[1737462417126,0.49639351,104350.0,104340.0,0.047965]
[1737462418232,0.08763351,104350.0,104340.0,0.11203094]
[1737462418430,0.08763351,104350.0,104340.0,0.047965]
[1737462419521,0.08663351,104350.0,104340.0,0.047965]
[1737462419722,0.08763351,104350.0,104340.0,0.047965]
[1737462420219,0.08763351,104350.0,104340.0,0.47283094]
[1737462420530,0.11398684,104360.0,104350.0,0.04796]
[1737462420833,0.11398684,104360.0,104350.0,0.47282594]
[1737462421128,0.11398684,104360.0,104350.0,0.40876]
[1737462421529,0.20001347,104360.0,104350.0,0.40876]
[1737462421833,0.20201347,104360.0,104350.0,0.40876]
[1737462422531,0.20201347,104360.0,104350.0,0.47282594]
[1737462423230,0.20201347,104360.0,104350.0,0.40876]
[1737462423430,0.20201347,104360.0,104350.0,0.47282594]
[1737462423630,0.20201347,104360.0,104350.0,0.55082594]
[1737462424826,0.20201347,104360.0,104350.0,0.55492577]
[1737462425018,0.20201347,104360.0,104350.0,0.72677608]
[1737462425019,0.002,104360.0,104350.0,0.72677608]
[1737462426440,0.002,104360.0,104350.0,0.66271014]
[1737462427337,0.002,104360.0,104350.0,0.30191014]
[1737462427635,0.002,104360.0,104350.0,0.36597608]
[1737462427835,0.002,104360.0,104350.0,0.30191014]
[1737462428337,0.002,104360.0,104350.0,0.36597608]
[1737462428534,0.002,104360.0,104350.0,0.72677608]
[1737462429136,0.002,104360.0,104350.0,0.55492577]
[1737462429432,0.002,104360.0,104350.0,0.49085983]
[1737462430333,0.049956,104360.0,104350.0,0.12596]
[1737462432042,0.002,104360.0,104350.0,0.55082594]
[1737462434248,7.7e-07,104380.0,104360.0,0.047956]
[1737462434542,0.7882409,104410.0,104380.0,0.047947]
[1737462434543,0.42935796,104410.0,104380.0,0.047947]
[1737462434743,0.42887796,104410.0,104400.0,0.47280294]
[1737462434943,0.4274409,104410.0,104400.0,0.47280294]
[1737462435239,0.4274409,104410.0,104400.0,0.559537]
[1737462435641,0.22796393,104410.0,104400.0,0.559537]
[1737462435837,0.65282987,104410.0,104400.0,0.047937]
[1737462436138,0.27589693,104410.0,104400.0,0.047937]
[1737462436344,0.22796393,104410.0,104400.0,0.047937]
[1737462436932,0.44342987,104410.0,104400.0,0.047937]
[1737462437140,0.44442987,104410.0,104400.0,0.047937]
[1737462437346,0.38036393,104410.0,104400.0,0.047937]
[1737462437645,0.42829693,104410.0,104400.0,0.047937]
[1737462437833,0.42929693,104410.0,104400.0,0.047937]
[1737462438237,0.38136393,104410.0,104400.0,0.047937]
[1737462438447,0.22996393,104410.0,104400.0,0.11200294]
[1737462438643,0.22896393,104410.0,104400.0,0.047937]
[1737462438839,0.22996393,104410.0,104400.0,0.047937]
[1737462439340,0.001,104410.0,104400.0,0.047937]
[1737462439545,0.002,104410.0,104400.0,0.047937]
[1737462443856,0.048933,104410.0,104400.0,0.047937]
[1737462444052,0.049933,104410.0,104400.0,0.047937]
[1737462444453,0.05510893,104410.0,104400.0,0.047937]
[1737462444650,0.05410893,104410.0,104400.0,0.047937]
[1737462444852,0.43204187,104410.0,104390.0,0.00014338]
[1737462445050,0.123837,104400.0,104390.0,0.04808438]
[1737462445851,0.54870294,104400.0,104390.0,0.04808438]
[1737462446154,0.54870294,104400.0,104390.0,0.00014338]
[1737462446859,0.55170294,104400.0,104390.0,0.00014338]
[1737462447054,0.61576888,104400.0,104380.0,0.40084731]
[1737462447254,0.047947,104380.0,104370.0,0.28591157]
[1737462447456,0.408747,104380.0,104370.0,0.44792909]
[1737462447847,0.3608,104380.0,104370.0,0.51199503]
[1737462448052,0.3608,104380.0,104370.0,0.44792909]
[1737462448556,0.415747,104380.0,104370.0,0.44792909]
[1737462449052,0.408747,104380.0,104370.0,0.44792909]
[1737462449248,0.409747,104380.0,104370.0,0.44792909]
[1737462449457,0.410747,104380.0,104370.0,0.44792909]
[1737462450665,0.409747,104380.0,104370.0,0.44792909]
[1737462451164,0.47381294,104380.0,104370.0,0.39997809]
[1737462451356,0.47481294,104380.0,104370.0,0.39997809]
[1737462451860,0.47481294,104380.0,104360.0,0.04809538]
[1737462451861,0.047951,104370.0,104360.0,0.04809538]
[1737462452160,0.410749,104380.0,104370.0,0.047951]
[1737462452360,0.412749,104380.0,104370.0,0.047951]
[1737462452560,0.414749,104380.0,104370.0,0.047951]
[1737462453154,0.47881494,104380.0,104370.0,0.047951]
[1737462453560,0.47581494,104380.0,104370.0,0.047951]
[1737462453762,0.47681494,104380.0,104370.0,0.047951]
[1737462453961,0.47381494,104380.0,104370.0,0.047951]
[1737462454464,0.48214107,104380.0,104370.0,0.047951]
[1737462454958,0.47914107,104380.0,104370.0,0.047951]
[1737462455160,0.48414107,104380.0,104370.0,0.047951]
[1737462456765,0.047951,104370.0,104360.0,0.04809738]
[1737462457857,0.048951,104370.0,104360.0,0.04809738]
[1737462459767,0.049951,104370.0,104360.0,0.04809738]
[1737462460066,0.048951,104370.0,104360.0,0.04809738]
[1737462460568,0.001,104370.0,104360.0,0.04809738]
[1737462460767,0.002,104370.0,104360.0,0.04809738]
[1737462461265,0.049951,104370.0,104360.0,0.04809738]
[1737462461664,0.047951,104370.0,104360.0,0.04809738]
[1737462461862,0.049951,104370.0,104360.0,0.04809738]
[1737462462365,0.410751,104370.0,104360.0,0.04809738]
[1737462464465,0.409751,104370.0,104360.0,0.04809738]
[1737462465265,0.410751,104370.0,104360.0,0.04809738]
[1737462465667,0.409751,104370.0,104360.0,0.04809738]
[1737462467968,0.410751,104370.0,104360.0,0.04809738]
[1737462468370,0.409751,104370.0,104360.0,0.04809738]
[1737462469170,0.410751,104370.0,104360.0,0.04809738]
[1737462470672,0.409751,104370.0,104360.0,0.04809738]
[1737462471370,0.410751,104370.0,104360.0,0.04809738]
[1737462472662,0.409751,104370.0,104360.0,0.04809738]